Workbook

Sheet 1
E4: USD | F4: Курс USD ЦБ РФ | G4: =VLOOKUP(E4,RATE!B:E,4,FALSE) -> 75.5379
B5: Расчет | E5: EUR | F5: Курс EUR ЦБ РФ | G5: =VLOOKUP(E5,RATE!B:E,4,FALSE) -> 89.2254
A6: Start | B6: Артикул | C6: Наименование | D6: Ед. изм. | E6: Кол-во | F6: Цена вход, руб без НДС | G6: Сумма вход, руб без НДС | H6: Шифр / Примечание | I6: Произв / Пост
A7: 1 | B7: ВВГнг(А)-LS 3x1,5 | C7: Кабель силовой медный в ПВХ изоляции, LS-исполнения, нг-исполнения ВВГнг(А)-LS 3x1,5 | D7: м | E7: 8 | F7: 35 | G7: =E7*F7 -> 280 | H7: ПР.М.123876 | I7: Mat
A8: 2 | B8: tg-z-16 | C8: Труба гофр. ПВХ Plast с зондом d16мм (100м.) EKF PROxima | D8: м | E8: 5 | F8: 10 | G8: =E8*F8 -> 50 | H8: ПР.М.123876 | I8: Ekf
A9: 3 | B9: 51116 | C9: Держатель двухкомпонентный, д.16мм | D9: шт | E9: 10 | F9: 9 | G9: 90 | H9: ПР.М.123876 | I9: Dkc
A10: 4 | B10: plc-fl-ctsw-2.5x200 | C10: Хомут P6.6 стандартный (б), 2.5x200 (100шт) FlexLock PROxima | D10: уп | E10: 1 | F10: 77 | G10: 77 | H10: ПР.М.123876 | I10: Ekf
A11: 5 | B11: СЛБ-25 | C11: Саморез с прессшайбой 4,2х25 сверло | D11: шт | E11: 44 | F11: 2 | G11: 88 | H11: ПР.М.123876 | I11: Mat
A12: 6 | B12: plc-pg-25 | C12: Сальник PG25 IP54 (100 шт) d отв. 30 мм / d провод. 16-21 мм EKF PROxima | D12: шт | E12: 4 | F12: 45 | G12: 180 | H12: ПР.М.123876 | I12: Ekf
A13: 7 | B13: 47482 | C13: Нак-к кольцевой НКИ 6,0- 6 (КВТ) | D13: шт | E13: 4 | F13: 5 | G13: 20 | H13: ПР.М.123876 | I13: Mat
A14: 8 | B14: ПуГВ 1х6 жз (ПВ3 6 жз) | C14: ПуГВ 1x6 жз Провод гибкий многожильный с ПВХ изоляцией 6 мм2 желто-зеленый | D14: м | E14: 2 | F14: 45 | G14: 90 | H14: ПР.М.123876 | I14: Mat
A15: 9 | B15: 1013038 | C15: PATG 2/15 Держатель маркировки проводника | D15: шт | E15: 6 | F15: 5 | G15: 30 | H15: ПР.М.123876 | I15: Phoenix
A16: 10 | B16: 0808260 | C16: PABL 15X4 Маркировочные полосы | D16: лист | E16: 4 | F16: 950 | G16: 3800 | H16: ПР.М.123876 | I16: Phoenix
A17: 11 | B17: kn-t-16 | C17: Коннектор для гофрированной трубы (16мм.) (50шт.) Plast EKFPROxima | D17: шт | E17: 7 | F17: 22 | G17: 154 | H17: ПР.М.123876 | I17: Ekf
A18: 12 | B18: 43Б25У134Н | C18: Бирка У-134 квадратная | D18: шт | E18: 6 | F18: 2 | G18: 12 | H18: ПР.М.123876 | I18: Iek
A19: 13 | G19: 0
A20: 14 | G20: 0
A21: 15 | G21: 0
A22: 16 | G22: 0
A23: 17 | G23: 0
A24: 18 | G24: 0
A25: 19 | G25: 0
A26: 20 | G26: 0
A27: 21 | G27: 0
A28: 22 | G28: 0
A29: 23 | G29: 0
A30: 24 | G30: 0
A31: 25 | G31: 0
A32: 26 | G32: 0
A33: 27 | G33: 0
A34: 28 | G34: 0
A35: 29 | G35: 0
A36: 30 | G36: 0
A37: 31 | G37: 0
A38: 32 | G38: 0
A39: 33 | G39: 0
A40: 34 | G40: 0
A41: 35 | G41: 0
A42: 36 | G42: 0
A43: 37 | G43: 0
A44: 38 | G44: 0
A45: 39 | G45: 0
A46: 40 | G46: 0
A47: 41 | G47: 0
A48: 42 | G48: 0
A49: 43 | G49: 0
A50: 44 | G50: 0
A51: 45 | G51: 0
A52: 46 | G52: 0
A53: 47 | G53: 0
A54: 48 | G54: 0
A55: 49 | G55: 0
A56: 50 | G56: 0
A57: 51 | G57: 0
A58: 52 | G58: 0
A59: 53 | G59: 0
A60: 54 | G60: 0
A61: 55 | G61: 0
A62: 56 | G62: 0
A63: 57 | G63: 0
A64: 58 | G64: 0
A65: 59 | G65: 0
A66: 60 | G66: 0
A67: 61 | G67: 0
A68: 62 | G68: 0
A69: 63 | G69: 0
A70: 64 | G70: 0
A71: 65 | G71: 0
A72: 66 | G72: =E72*F72 -> 0
A73: 67 | G73: 0
A74: 68 | G74: 0
A75: 69 | G75: 0
A76: 70 | G76: 0
A77: 71 | G77: 0
A78: 72 | G78: 0
A79: 73 | G79: 0
A80: 74 | G80: 0
A81: 75 | G81: 0
A82: 76 | G82: 0
A83: 77 | G83: 0
A84: 78 | G84: 0
A85: 79 | G85: 0
A86: 80 | G86: 0
A87: 81 | G87: 0
A88: 82 | G88: 0
A89: 83 | G89: 0
A90: 84 | G90: 0
A91: 85 | G91: 0
A92: 86 | G92: 0
A93: 87 | G93: 0
A94: 88 | G94: 0
A95: 89 | G95: 0
A96: 90 | G96: 0
A97: 91 | G97: 0
A98: 92 | G98: 0
A99: 93 | G99: 0
A100: 94 | G100: 0
A101: 95 | G101: 0
A102: 96 | G102: 0
A103: 97 | G103: 0
A104: 98 | G104: 0
A105: 99 | G105: 0
A106: 100 | G106: 0
A107: End | C107: ИТОГО | G107: =SUM(G7:G106) -> 4871

Sheet 2
E4: USD | F4: Курс USD ЦБ РФ | G4: =VLOOKUP(E4,RATE!B:E,4,FALSE) -> 75.5379
B5: Расчет | E5: EUR | F5: Курс EUR ЦБ РФ | G5: =VLOOKUP(E5,RATE!B:E,4,FALSE) -> 89.2254
A6: Start | B6: Артикул | C6: Наименование | D6: Ед. изм. | E6: Кол-во | F6: Цена вход, руб без НДС | G6: Сумма вход, руб без НДС | H6: Шифр / Примечание | I6: Произв / Пост
A7: 1 | B7: ВВГнг(А)-LS 3x1,5 | C7: Кабель силовой медный в ПВХ изоляции, LS-исполнения, нг-исполнения ВВГнг(А)-LS 3x1,5 | D7: м | E7: 7 | F7: 35 | G7: =E7*F7 -> 245 | H7: ПР.М.444444 | I7: Mat
A8: 2 | B8: tg-z-16 | C8: Труба гофр. ПВХ Plast с зондом d16мм (100м.) EKF PROxima | D8: м | E8: 3 | F8: 10 | G8: =E8*F8 -> 30 | H8: ПР.М.444444 | I8: Ekf
A9: 3 | B9: 51116 | C9: Держатель двухкомпонентный, д.16мм | D9: шт | E9: 10 | F9: 9 | G9: 90 | H9: ПР.М.444445 | I9: Dkc
A10: 4 | B10: plc-fl-ctsw-2.5x200 | C10: Хомут P6.6 стандартный (б), 2.5x200 (100шт) FlexLock PROxima | D10: уп | E10: 1 | F10: 77 | G10: 77 | H10: ПР.М.444446 | I10: Ekf
A11: 5 | B11: СЛБ-25 | C11: Саморез с прессшайбой 4,2х25 сверло | D11: шт | E11: 30 | F11: 2 | G11: 60 | H11: ПР.М.444447 | I11: Mat
A12: 6 | B12: plc-pg-25 | C12: Сальник PG25 IP54 (100 шт) d отв. 30 мм / d провод. 16-21 мм EKF PROxima | D12: шт | E12: 2 | F12: 45 | G12: 90 | H12: ПР.М.444448 | I12: Ekf
A13: 7 | B13: 47482 | C13: Нак-к кольцевой НКИ 6,0- 6 (КВТ) | D13: шт | E13: 4 | F13: 5 | G13: 20 | H13: ПР.М.444449 | I13: Mat
A14: 8 | B14: ПуГВ 1х6 жз (ПВ3 6 жз) | C14: ПуГВ 1x6 жз Провод гибкий многожильный с ПВХ изоляцией 6 мм2 желто-зеленый | D14: м | E14: 5 | F14: 45 | G14: 225 | H14: ПР.М.444450 | I14: Mat
A15: 9 | B15: 1013038 | C15: PATG 2/15 Держатель маркировки проводника | D15: шт | E15: 6 | F15: 5 | G15: 30 | H15: ПР.М.444451 | I15: Phoenix
A16: 10 | B16: 0808260 | C16: PABL 15X4 Маркировочные полосы | D16: лист | E16: 3 | F16: 950 | G16: 2850 | H16: ПР.М.444452 | I16: Phoenix
A17: 11 | B17: kn-t-16 | C17: Коннектор для гофрированной трубы (16мм.) (50шт.) Plast EKFPROxima | D17: шт | E17: 7 | F17: 22 | G17: 154 | H17: ПР.М.444453 | I17: Ekf
A18: 12 | B18: 43Б25У134Н | C18: Бирка У-134 квадратная | D18: шт | E18: 3 | F18: 2 | G18: 6 | H18: ПР.М.444454 | I18: Iek
A19: 13 | G19: 0
A20: 14 | G20: 0
A21: 15 | G21: 0
A22: 16 | G22: 0
A23: 17 | G23: 0
A24: 18 | G24: 0
A25: 19 | G25: 0
A26: 20 | G26: 0
A27: 21 | G27: 0
A28: 22 | G28: 0
A29: 23 | G29: 0
A30: 24 | G30: 0
A31: 25 | G31: 0
A32: 26 | G32: 0
A33: 27 | G33: 0
A34: 28 | G34: 0
A35: 29 | G35: 0
A36: 30 | G36: 0
A37: 31 | G37: 0
A38: 32 | G38: 0
A39: 33 | G39: 0
A40: 34 | G40: 0
A41: 35 | G41: 0
A42: 36 | G42: 0
A43: 37 | G43: 0
A44: 38 | G44: 0
A45: 39 | G45: 0
A46: 40 | G46: 0
A47: 41 | G47: 0
A48: 42 | G48: 0
A49: 43 | G49: 0
A50: 44 | G50: 0
A51: 45 | G51: 0
A52: 46 | G52: 0
A53: 47 | G53: 0
A54: 48 | G54: 0
A55: 49 | G55: 0
A56: 50 | G56: 0
A57: 51 | G57: 0
A58: 52 | G58: 0
A59: 53 | G59: 0
A60: 54 | G60: 0
A61: 55 | G61: 0
A62: 56 | G62: 0
A63: 57 | G63: 0
A64: 58 | G64: 0
A65: 59 | G65: 0
A66: 60 | G66: 0
A67: 61 | G67: 0
A68: 62 | G68: 0
A69: 63 | G69: 0
A70: 64 | G70: 0
A71: 65 | G71: 0
A72: 66 | G72: =E72*F72 -> 0
A73: 67 | G73: 0
A74: 68 | G74: 0
A75: 69 | G75: 0
A76: 70 | G76: 0
A77: 71 | G77: 0
A78: 72 | G78: 0
A79: 73 | G79: 0
A80: 74 | G80: 0
A81: 75 | G81: 0
A82: 76 | G82: 0
A83: 77 | G83: 0
A84: 78 | G84: 0
A85: 79 | G85: 0
A86: 80 | G86: 0
A87: 81 | G87: 0
A88: 82 | G88: 0
A89: 83 | G89: 0
A90: 84 | G90: 0
A91: 85 | G91: 0
A92: 86 | G92: 0
A93: 87 | G93: 0
A94: 88 | G94: 0
A95: 89 | G95: 0
A96: 90 | G96: 0
A97: 91 | G97: 0
A98: 92 | G98: 0
A99: 93 | G99: 0
A100: 94 | G100: =E100*F100 -> 0
A101: 95 | G101: 0
A102: 96 | G102: 0
A103: 97 | G103: 0
A104: 98 | G104: 0
A105: 99 | G105: 0
A106: 100 | G106: 0
A107: End | C107: ИТОГО | G107: =SUM(G7:G106) -> 3877

Sheet 3
E4: USD | F4: Курс USD ЦБ РФ | G4: =VLOOKUP(E4,RATE!B:E,4,FALSE) -> 75.5379
B5: Расчет | E5: EUR | F5: Курс EUR ЦБ РФ | G5: =VLOOKUP(E5,RATE!B:E,4,FALSE) -> 89.2254
A6: Start | B6: Артикул | C6: Наименование | D6: Ед. изм. | E6: Кол-во | F6: Цена вход, руб без НДС | G6: Сумма вход, руб без НДС | H6: Шифр / Примечание | I6: Произв / Пост
A7: 1 | B7: ВВГнг(А)-LS 3x1,5 | C7: Кабель силовой медный в ПВХ изоляции, LS-исполнения, нг-исполнения ВВГнг(А)-LS 3x1,5 | D7: м | E7: 2 | F7: 35 | G7: =E7*F7 -> 70 | H7: ПР.М.44545454 | I7: Mat
A8: 2 | B8: tg-z-16 | C8: Труба гофр. ПВХ Plast с зондом d16мм (100м.) EKF PROxima | D8: м | E8: 3 | F8: 10 | G8: =E8*F8 -> 30 | H8: ПР.М.44545454 | I8: Ekf
A9: 3 | B9: 51116 | C9: Держатель двухкомпонентный, д.16мм | D9: шт | E9: 10 | F9: 9 | G9: 90 | H9: ПР.М.44545454 | I9: Dkc
A10: 4 | B10: plc-fl-ctsw-2.5x200 | C10: Хомут P6.6 стандартный (б), 2.5x200 (100шт) FlexLock PROxima | D10: уп | E10: 1 | F10: 77 | G10: 77 | H10: ПР.М.44545454 | I10: Ekf
A11: 5 | B11: СЛБ-25 | C11: Саморез с прессшайбой 4,2х25 сверло | D11: шт | E11: 30 | F11: 2 | G11: 60 | H11: ПР.М.44545454 | I11: Mat
A12: 6 | B12: plc-pg-25 | C12: Сальник PG25 IP54 (100 шт) d отв. 30 мм / d провод. 16-21 мм EKF PROxima | D12: шт | E12: 4 | F12: 45 | G12: 180 | H12: ПР.М.44545454 | I12: Ekf
A13: 7 | B13: 47482 | C13: Нак-к кольцевой НКИ 6,0- 6 (КВТ) | D13: шт | E13: 4 | F13: 5 | G13: 20 | H13: ПР.М.44545454 | I13: Mat
A14: 8 | B14: ПуГВ 1х6 жз (ПВ3 6 жз) | C14: ПуГВ 1x6 жз Провод гибкий многожильный с ПВХ изоляцией 6 мм2 желто-зеленый | D14: м | E14: 2 | F14: 45 | G14: 90 | H14: ПР.М.44545454 | I14: Mat
A15: 9 | B15: 1013038 | C15: PATG 2/15 Держатель маркировки проводника | D15: шт | E15: 6 | F15: 5 | G15: 30 | H15: ПР.М.44545454 | I15: Phoenix
A16: 10 | B16: 0808260 | C16: PABL 15X4 Маркировочные полосы | D16: лист | E16: 6 | F16: 950 | G16: 5700 | H16: ПР.М.44545454 | I16: Phoenix
A17: 11 | B17: kn-t-16 | C17: Коннектор для гофрированной трубы (16мм.) (50шт.) Plast EKFPROxima | D17: шт | E17: 4 | F17: 22 | G17: 88 | H17: ПР.М.44545454 | I17: Ekf
A18: 12 | B18: 43Б25У134Н | C18: Бирка У-134 квадратная | D18: шт | E18: 13 | F18: 2 | G18: 26 | H18: ПР.М.44545454 | I18: Iek
A19: 13 | G19: 0
A20: 14 | G20: 0
A21: 15 | G21: 0
A22: 16 | G22: 0
A23: 17 | G23: 0
A24: 18 | G24: 0
A25: 19 | G25: 0
A26: 20 | G26: 0
A27: 21 | G27: 0
A28: 22 | G28: 0
A29: 23 | G29: 0
A30: 24 | G30: 0
A31: 25 | G31: 0
A32: 26 | G32: 0
A33: 27 | G33: 0
A34: 28 | G34: 0
A35: 29 | G35: 0
A36: 30 | G36: 0
A37: 31 | G37: 0
A38: 32 | G38: 0
A39: 33 | G39: 0
A40: 34 | G40: 0
A41: 35 | G41: 0
A42: 36 | G42: 0
A43: 37 | G43: 0
A44: 38 | G44: 0
A45: 39 | G45: 0
A46: 40 | G46: 0
A47: 41 | G47: 0
A48: 42 | G48: 0
A49: 43 | G49: 0
A50: 44 | G50: 0
A51: 45 | G51: 0
A52: 46 | G52: 0
A53: 47 | G53: 0
A54: 48 | G54: 0
A55: 49 | G55: 0
A56: 50 | G56: 0
A57: 51 | G57: 0
A58: 52 | G58: 0
A59: 53 | G59: 0
A60: 54 | G60: 0
A61: 55 | G61: 0
A62: 56 | G62: 0
A63: 57 | G63: 0
A64: 58 | G64: 0
A65: 59 | G65: 0
A66: 60 | G66: 0
A67: 61 | G67: 0
A68: 62 | G68: 0
A69: 63 | G69: 0
A70: 64 | G70: 0
A71: 65 | G71: 0
A72: 66 | G72: =E72*F72 -> 0
A73: 67 | G73: 0
A74: 68 | G74: 0
A75: 69 | G75: 0
A76: 70 | G76: 0
A77: 71 | G77: 0
A78: 72 | G78: 0
A79: 73 | G79: 0
A80: 74 | G80: 0
A81: 75 | G81: 0
A82: 76 | G82: 0
A83: 77 | G83: 0
A84: 78 | G84: 0
A85: 79 | G85: 0
A86: 80 | G86: 0
A87: 81 | G87: 0
A88: 82 | G88: 0
A89: 83 | G89: 0
A90: 84 | G90: 0
A91: 85 | G91: 0
A92: 86 | G92: 0
A93: 87 | G93: 0
A94: 88 | G94: 0
A95: 89 | G95: 0
A96: 90 | G96: 0
A97: 91 | G97: 0
A98: 92 | G98: 0
A99: 93 | G99: 0
A100: 94 | G100: =E100*F100 -> 0
A101: 95 | G101: 0
A102: 96 | G102: 0
A103: 97 | G103: 0
A104: 98 | G104: 0
A105: 99 | G105: 0
A106: 100 | G106: 0
A107: End | C107: ИТОГО | G107: =SUM(G7:G106) -> 6461

Sheet 4
E4: USD | F4: Курс USD ЦБ РФ | G4: =VLOOKUP(E4,RATE!B:E,4,FALSE) -> 75.5379
B5: Расчет | E5: EUR | F5: Курс EUR ЦБ РФ | G5: =VLOOKUP(E5,RATE!B:E,4,FALSE) -> 89.2254
A6: Start | B6: Артикул | C6: Наименование | D6: Ед. изм. | E6: Кол-во | F6: Цена вход, руб без НДС | G6: Сумма вход, руб без НДС | H6: Шифр / Примечание | I6: Произв / Пост
A7: 1 | B7: ВВГнг(А)-LS 3x1,5 | C7: Кабель силовой медный в ПВХ изоляции, LS-исполнения, нг-исполнения ВВГнг(А)-LS 3x1,5 | D7: м | E7: 7 | F7: 35 | G7: =E7*F7 -> 245 | H7: ПР.М.от.3434 | I7: Mat
A8: 2 | B8: tg-z-16 | C8: Труба гофр. ПВХ Plast с зондом d16мм (100м.) EKF PROxima | D8: м | E8: 4 | F8: 10 | G8: =E8*F8 -> 40 | H8: ПР.М.от.3434 | I8: Ekf
A9: 3 | B9: 51116 | C9: Держатель двухкомпонентный, д.16мм | D9: шт | E9: 10 | F9: 9 | G9: 90 | H9: ПР.М.от.3435 | I9: Dkc
A10: 4 | B10: plc-fl-ctsw-2.5x200 | C10: Хомут P6.6 стандартный (б), 2.5x200 (100шт) FlexLock PROxima | D10: уп | E10: 1 | F10: 77 | G10: 77 | H10: ПР.М.от.3436 | I10: Ekf
A11: 5 | B11: СЛБ-25 | C11: Саморез с прессшайбой 4,2х25 сверло | D11: шт | E11: 30 | F11: 2 | G11: 60 | H11: ПР.М.от.3437 | I11: Mat
A12: 6 | B12: plc-pg-25 | C12: Сальник PG25 IP54 (100 шт) d отв. 30 мм / d провод. 16-21 мм EKF PROxima | D12: шт | E12: 2 | F12: 45 | G12: 90 | H12: ПР.М.от.3438 | I12: Ekf
A13: 7 | B13: 47482 | C13: Нак-к кольцевой НКИ 6,0- 6 (КВТ) | D13: шт | E13: 4 | F13: 5 | G13: 20 | H13: ПР.М.от.3439 | I13: Mat
A14: 8 | B14: ПуГВ 1х6 жз (ПВ3 6 жз) | C14: ПуГВ 1x6 жз Провод гибкий многожильный с ПВХ изоляцией 6 мм2 желто-зеленый | D14: м | E14: 112 | F14: 45 | G14: 5040 | H14: ПР.М.от.3440 | I14: Mat
A15: 9 | B15: 1013038 | C15: PATG 2/15 Держатель маркировки проводника | D15: шт | E15: 44 | F15: 5 | G15: 220 | H15: ПР.М.от.3441 | I15: Phoenix
A16: 10 | B16: 0808260 | C16: PABL 15X4 Маркировочные полосы | D16: лист | E16: 2 | F16: 950 | G16: 1900 | H16: ПР.М.от.3442 | I16: Phoenix
A17: 11 | B17: kn-t-16 | C17: Коннектор для гофрированной трубы (16мм.) (50шт.) Plast EKFPROxima | D17: шт | E17: 4 | F17: 22 | G17: 88 | H17: ПР.М.от.3443 | I17: Ekf
A18: 12 | B18: 43Б25У134Н | C18: Бирка У-134 квадратная | D18: шт | E18: 5 | F18: 2 | G18: 10 | H18: ПР.М.от.3444 | I18: Iek
A19: 13 | G19: 0
A20: 14 | G20: 0
A21: 15 | G21: 0
A22: 16 | G22: 0
A23: 17 | G23: 0
A24: 18 | G24: 0
A25: 19 | G25: 0
A26: 20 | G26: 0
A27: 21 | G27: 0
A28: 22 | G28: 0
A29: 23 | G29: 0
A30: 24 | G30: 0
A31: 25 | G31: 0
A32: 26 | G32: 0
A33: 27 | G33: 0
A34: 28 | G34: 0
A35: 29 | G35: 0
A36: 30 | G36: 0
A37: 31 | G37: 0
A38: 32 | G38: 0
A39: 33 | G39: 0
A40: 34 | G40: 0
A41: 35 | G41: 0
A42: 36 | G42: 0
A43: 37 | G43: 0
A44: 38 | G44: 0
A45: 39 | G45: 0
A46: 40 | G46: 0
A47: 41 | G47: 0
A48: 42 | G48: 0
A49: 43 | G49: 0
A50: 44 | G50: 0
A51: 45 | G51: 0
A52: 46 | G52: 0
A53: 47 | G53: 0
A54: 48 | G54: 0
A55: 49 | G55: 0
A56: 50 | G56: 0
A57: 51 | G57: 0
A58: 52 | G58: 0
A59: 53 | G59: 0
A60: 54 | G60: 0
A61: 55 | G61: 0
A62: 56 | G62: 0
A63: 57 | G63: 0
A64: 58 | G64: 0
A65: 59 | G65: 0
A66: 60 | G66: 0
A67: 61 | G67: 0
A68: 62 | G68: 0
A69: 63 | G69: 0
A70: 64 | G70: 0
A71: 65 | G71: 0
A72: 66 | G72: =E72*F72 -> 0
A73: 67 | G73: 0
A74: 68 | G74: 0
A75: 69 | G75: 0
A76: 70 | G76: 0
A77: 71 | G77: 0
A78: 72 | G78: 0
A79: 73 | G79: 0
A80: 74 | G80: 0
A81: 75 | G81: 0
A82: 76 | G82: 0
A83: 77 | G83: 0
A84: 78 | G84: 0
A85: 79 | G85: 0
A86: 80 | G86: 0
A87: 81 | G87: 0
A88: 82 | G88: 0
A89: 83 | G89: 0
A90: 84 | G90: 0
A91: 85 | G91: 0
A92: 86 | G92: 0
A93: 87 | G93: 0
A94: 88 | G94: 0
A95: 89 | G95: 0
A96: 90 | G96: 0
A97: 91 | G97: 0
A98: 92 | G98: 0
A99: 93 | G99: 0
A100: 94 | G100: =E100*F100 -> 0
A101: 95 | G101: 0
A102: 96 | G102: 0
A103: 97 | G103: 0
A104: 98 | G104: 0
A105: 99 | G105: 0
A106: 100 | G106: 0
A107: End | C107: ИТОГО | G107: =SUM(G7:G106) -> 7880

Sheet 5
E4: USD | F4: Курс USD ЦБ РФ | G4: =VLOOKUP(E4,RATE!B:E,4,FALSE) -> 75.5379
B5: Расчет | E5: EUR | F5: Курс EUR ЦБ РФ | G5: =VLOOKUP(E5,RATE!B:E,4,FALSE) -> 89.2254
A6: Start | B6: Артикул | C6: Наименование | D6: Ед. изм. | E6: Кол-во | F6: Цена вход, руб без НДС | G6: Сумма вход, руб без НДС | H6: Шифр / Примечание | I6: Произв / Пост
A7: 1 | B7: ВВГнг(А)-LS 3x1,5 | C7: Кабель силовой медный в ПВХ изоляции, LS-исполнения, нг-исполнения ВВГнг(А)-LS 3x1,5 | D7: м | E7: 8 | F7: 35 | G7: =E7*F7 -> 280 | H7: ПР.М.К656 | I7: Mat
A8: 2 | B8: tg-z-16 | C8: Труба гофр. ПВХ Plast с зондом d16мм (100м.) EKF PROxima | D8: м | E8: 6 | F8: 10 | G8: =E8*F8 -> 60 | H8: ПР.М.К656 | I8: Ekf
A9: 3 | B9: 51116 | C9: Держатель двухкомпонентный, д.16мм | D9: шт | E9: 33 | F9: 9 | G9: 297 | H9: ПР.М.К656 | I9: Dkc
A10: 4 | B10: plc-fl-ctsw-2.5x200 | C10: Хомут P6.6 стандартный (б), 2.5x200 (100шт) FlexLock PROxima | D10: уп | E10: 1 | F10: 77 | G10: 77 | H10: ПР.М.К656 | I10: Ekf
A11: 5 | B11: СЛБ-25 | C11: Саморез с прессшайбой 4,2х25 сверло | D11: шт | E11: 66 | F11: 2 | G11: 132 | H11: ПР.М.К656 | I11: Mat
A12: 6 | B12: plc-pg-25 | C12: Сальник PG25 IP54 (100 шт) d отв. 30 мм / d провод. 16-21 мм EKF PROxima | D12: шт | E12: 2 | F12: 45 | G12: 90 | H12: ПР.М.К656 | I12: Ekf
A13: 7 | B13: 47482 | C13: Нак-к кольцевой НКИ 6,0- 6 (КВТ) | D13: шт | E13: 4 | F13: 5 | G13: 20 | H13: ПР.М.К656 | I13: Mat
A14: 8 | B14: ПуГВ 1х6 жз (ПВ3 6 жз) | C14: ПуГВ 1x6 жз Провод гибкий многожильный с ПВХ изоляцией 6 мм2 желто-зеленый | D14: м | E14: 2 | F14: 45 | G14: 90 | H14: ПР.М.К656 | I14: Mat
A15: 9 | B15: 1013038 | C15: PATG 2/15 Держатель маркировки проводника | D15: шт | E15: 6 | F15: 5 | G15: 30 | H15: ПР.М.К656 | I15: Phoenix
A16: 10 | B16: 0808260 | C16: PABL 15X4 Маркировочные полосы | D16: лист | E16: 3 | F16: 950 | G16: 2850 | H16: ПР.М.К656 | I16: Phoenix
A17: 11 | B17: kn-t-16 | C17: Коннектор для гофрированной трубы (16мм.) (50шт.) Plast EKFPROxima | D17: шт | E17: 5 | F17: 22 | G17: 110 | H17: ПР.М.К656 | I17: Ekf
A18: 12 | B18: 43Б25У134Н | C18: Бирка У-134 квадратная | D18: шт | E18: 2 | F18: 2 | G18: 4 | H18: ПР.М.К656 | I18: Iek
A19: 13 | G19: 0
A20: 14 | G20: 0
A21: 15 | G21: 0
A22: 16 | G22: 0
A23: 17 | G23: 0
A24: 18 | G24: 0
A25: 19 | G25: 0
A26: 20 | G26: 0
A27: 21 | G27: 0
A28: 22 | G28: 0
A29: 23 | G29: 0
A30: 24 | G30: 0
A31: 25 | G31: 0
A32: 26 | G32: 0
A33: 27 | G33: 0
A34: 28 | G34: 0
A35: 29 | G35: 0
A36: 30 | G36: 0
A37: 31 | G37: 0
A38: 32 | G38: 0
A39: 33 | G39: 0
A40: 34 | G40: 0
A41: 35 | G41: 0
A42: 36 | G42: 0
A43: 37 | G43: 0
A44: 38 | G44: 0
A45: 39 | G45: 0
A46: 40 | G46: 0
A47: 41 | G47: 0
A48: 42 | G48: 0
A49: 43 | G49: 0
A50: 44 | G50: 0
A51: 45 | G51: 0
A52: 46 | G52: 0
A53: 47 | G53: 0
A54: 48 | G54: 0
A55: 49 | G55: 0
A56: 50 | G56: 0
A57: 51 | G57: 0
A58: 52 | G58: 0
A59: 53 | G59: 0
A60: 54 | G60: 0
A61: 55 | G61: 0
A62: 56 | G62: 0
A63: 57 | G63: 0
A64: 58 | G64: 0
A65: 59 | G65: 0
A66: 60 | G66: 0
A67: 61 | G67: 0
A68: 62 | G68: 0
A69: 63 | G69: 0
A70: 64 | G70: 0
A71: 65 | G71: 0
A72: 66 | G72: =E72*F72 -> 0
A73: 67 | G73: 0
A74: 68 | G74: 0
A75: 69 | G75: 0
A76: 70 | G76: 0
A77: 71 | G77: 0
A78: 72 | G78: 0
A79: 73 | G79: 0
A80: 74 | G80: 0
A81: 75 | G81: 0
A82: 76 | G82: 0
A83: 77 | G83: 0
A84: 78 | G84: 0
A85: 79 | G85: 0
A86: 80 | G86: 0
A87: 81 | G87: 0
A88: 82 | G88: 0
A89: 83 | G89: 0
A90: 84 | G90: 0
A91: 85 | G91: 0
A92: 86 | G92: 0
A93: 87 | G93: 0
A94: 88 | G94: 0
A95: 89 | G95: 0
A96: 90 | G96: 0
A97: 91 | G97: 0
A98: 92 | G98: 0
A99: 93 | G99: 0
A100: 94 | G100: =E100*F100 -> 0
A101: 95 | G101: 0
A102: 96 | G102: 0
A103: 97 | G103: 0
A104: 98 | G104: 0
A105: 99 | G105: 0
A106: 100 | G106: 0
A107: End | C107: ИТОГО | G107: =SUM(G7:G106) -> 4040

Sheet 6
E4: USD | F4: Курс USD ЦБ РФ | G4: =VLOOKUP(E4,RATE!B:E,4,FALSE) -> 75.5379
B5: Расчет | E5: EUR | F5: Курс EUR ЦБ РФ | G5: =VLOOKUP(E5,RATE!B:E,4,FALSE) -> 89.2254
A6: Start | B6: Артикул | C6: Наименование | D6: Ед. изм. | E6: Кол-во | F6: Цена вход, руб без НДС | G6: Сумма вход, руб без НДС | H6: Шифр / Примечание | I6: Произв / Пост
A7: 1 | B7: ВВГнг(А)-LS 3x1,5 | C7: Кабель силовой медный в ПВХ изоляции, LS-исполнения, нг-исполнения ВВГнг(А)-LS 3x1,5 | D7: м | E7: 8 | F7: 35 | G7: =E7*F7 -> 280 | H7: ПР.М.4455000 | I7: Mat
A8: 2 | B8: tg-z-16 | C8: Труба гофр. ПВХ Plast с зондом d16мм (100м.) EKF PROxima | D8: м | E8: 5 | F8: 10 | G8: =E8*F8 -> 50 | H8: ПР.М.4455000 | I8: Ekf
A9: 3 | B9: 51116 | C9: Держатель двухкомпонентный, д.16мм | D9: шт | E9: 25 | F9: 9 | G9: 225 | H9: ПР.М.4455000 | I9: Dkc
A10: 4 | B10: plc-fl-ctsw-2.5x200 | C10: Хомут P6.6 стандартный (б), 2.5x200 (100шт) FlexLock PROxima | D10: уп | E10: 1 | F10: 77 | G10: 77 | H10: ПР.М.4455000 | I10: Ekf
A11: 5 | B11: СЛБ-25 | C11: Саморез с прессшайбой 4,2х25 сверло | D11: шт | E11: 30 | F11: 2 | G11: 60 | H11: ПР.М.4455000 | I11: Mat
A12: 6 | B12: plc-pg-25 | C12: Сальник PG25 IP54 (100 шт) d отв. 30 мм / d провод. 16-21 мм EKF PROxima | D12: шт | E12: 45 | F12: 45 | G12: 2025 | H12: ПР.М.4455000 | I12: Ekf
A13: 7 | B13: 47482 | C13: Нак-к кольцевой НКИ 6,0- 6 (КВТ) | D13: шт | E13: 4 | F13: 5 | G13: 20 | H13: ПР.М.44533 | I13: Mat
A14: 8 | B14: ПуГВ 1х6 жз (ПВ3 6 жз) | C14: ПуГВ 1x6 жз Провод гибкий многожильный с ПВХ изоляцией 6 мм2 желто-зеленый | D14: м | E14: 2 | F14: 45 | G14: 90 | H14: ПР.М.44533 | I14: Mat
A15: 9 | B15: 1013038 | C15: PATG 2/15 Держатель маркировки проводника | D15: шт | E15: 6 | F15: 5 | G15: 30 | H15: ПР.М.44533 | I15: Phoenix
A16: 10 | B16: 0808260 | C16: PABL 15X4 Маркировочные полосы | D16: лист | E16: 2 | F16: 950 | G16: 1900 | H16: ПР.М.44533 | I16: Phoenix
A17: 11 | B17: kn-t-16 | C17: Коннектор для гофрированной трубы (16мм.) (50шт.) Plast EKFPROxima | D17: шт | E17: 6 | F17: 22 | G17: 132 | H17: ПР.М.44533 | I17: Ekf
A18: 12 | B18: 43Б25У134Н | C18: Бирка У-134 квадратная | D18: шт | E18: 2 | F18: 2 | G18: 4 | H18: ПР.М.44533 | I18: Iek
A19: 13 | G19: 0
A20: 14 | G20: 0
A21: 15 | G21: 0
A22: 16 | G22: 0
A23: 17 | G23: 0
A24: 18 | G24: 0
A25: 19 | G25: 0
A26: 20 | G26: 0
A27: 21 | G27: 0
A28: 22 | G28: 0
A29: 23 | G29: 0
A30: 24 | G30: 0
A31: 25 | G31: 0
A32: 26 | G32: 0
A33: 27 | G33: 0
A34: 28 | G34: 0
A35: 29 | G35: 0
A36: 30 | G36: 0
A37: 31 | G37: 0
A38: 32 | G38: 0
A39: 33 | G39: 0
A40: 34 | G40: 0
A41: 35 | G41: 0
A42: 36 | G42: 0
A43: 37 | G43: 0
A44: 38 | G44: 0
A45: 39 | G45: 0
A46: 40 | G46: 0
A47: 41 | G47: 0
A48: 42 | G48: 0
A49: 43 | G49: 0
A50: 44 | G50: 0
A51: 45 | G51: 0
A52: 46 | G52: 0
A53: 47 | G53: 0
A54: 48 | G54: 0
A55: 49 | G55: 0
A56: 50 | G56: 0
A57: 51 | G57: 0
A58: 52 | G58: 0
A59: 53 | G59: 0
A60: 54 | G60: 0
A61: 55 | G61: 0
A62: 56 | G62: 0
A63: 57 | G63: 0
A64: 58 | G64: 0
A65: 59 | G65: 0
A66: 60 | G66: 0
A67: 61 | G67: 0
A68: 62 | G68: 0
A69: 63 | G69: 0
A70: 64 | G70: 0
A71: 65 | G71: 0
A72: 66 | G72: =E72*F72 -> 0
A73: 67 | G73: 0
A74: 68 | G74: 0
A75: 69 | G75: 0
A76: 70 | G76: 0
A77: 71 | G77: 0
A78: 72 | G78: 0
A79: 73 | G79: 0
A80: 74 | G80: 0
A81: 75 | G81: 0
A82: 76 | G82: 0
A83: 77 | G83: 0
A84: 78 | G84: 0
A85: 79 | G85: 0
A86: 80 | G86: 0
A87: 81 | G87: 0
A88: 82 | G88: 0
A89: 83 | G89: 0
A90: 84 | G90: 0
A91: 85 | G91: 0
A92: 86 | G92: 0
A93: 87 | G93: 0
A94: 88 | G94: 0
A95: 89 | G95: 0
A96: 90 | G96: 0
A97: 91 | G97: 0
A98: 92 | G98: 0
A99: 93 | G99: 0
A100: 94 | G100: =E100*F100 -> 0
A101: 95 | G101: 0
A102: 96 | G102: 0
A103: 97 | G103: 0
A104: 98 | G104: 0
A105: 99 | G105: 0
A106: 100 | G106: 0
A107: End | C107: ИТОГО | G107: =SUM(G7:G106) -> 4893

Sheet 7
E4: USD | F4: Курс USD ЦБ РФ | G4: =VLOOKUP(E4,RATE!B:E,4,FALSE) -> 75.5379
B5: Расчет | E5: EUR | F5: Курс EUR ЦБ РФ | G5: =VLOOKUP(E5,RATE!B:E,4,FALSE) -> 89.2254
A6: Start | B6: Артикул | C6: Наименование | D6: Ед. изм. | E6: Кол-во | F6: Цена вход, руб без НДС | G6: Сумма вход, руб без НДС | H6: Шифр / Примечание | I6: Произв / Пост
A7: 1 | B7: ВВГнг(А)-LS 3x1,5 | C7: Кабель силовой медный в ПВХ изоляции, LS-исполнения, нг-исполнения ВВГнг(А)-LS 3x1,5 | D7: м | E7: 6 | F7: 35 | G7: =E7*F7 -> 210 | H7: ПР.М.125К.11 | I7: Mat
A8: 2 | B8: tg-z-16 | C8: Труба гофр. ПВХ Plast с зондом d16мм (100м.) EKF PROxima | D8: м | E8: 2 | F8: 10 | G8: =E8*F8 -> 20 | H8: ПР.М.125К.11 | I8: Ekf
A9: 3 | B9: 51116 | C9: Держатель двухкомпонентный, д.16мм | D9: шт | E9: 15 | F9: 9 | G9: 135 | H9: ПР.М.125К.11 | I9: Dkc
A10: 4 | B10: plc-fl-ctsw-2.5x200 | C10: Хомут P6.6 стандартный (б), 2.5x200 (100шт) FlexLock PROxima | D10: уп | E10: 1 | F10: 77 | G10: 77 | H10: ПР.М.125К.11 | I10: Ekf
A11: 5 | B11: СЛБ-25 | C11: Саморез с прессшайбой 4,2х25 сверло | D11: шт | E11: 33 | F11: 2 | G11: 66 | H11: ПР.М.125К.11 | I11: Mat
A12: 6 | B12: plc-pg-25 | C12: Сальник PG25 IP54 (100 шт) d отв. 30 мм / d провод. 16-21 мм EKF PROxima | D12: шт | E12: 2 | F12: 45 | G12: 90 | H12: ПР.М.125К.11 | I12: Ekf
A13: 7 | B13: 47482 | C13: Нак-к кольцевой НКИ 6,0- 6 (КВТ) | D13: шт | E13: 4 | F13: 5 | G13: 20 | H13: ПР.М.125К.11 | I13: Mat
A14: 8 | B14: ПуГВ 1х6 жз (ПВ3 6 жз) | C14: ПуГВ 1x6 жз Провод гибкий многожильный с ПВХ изоляцией 6 мм2 желто-зеленый | D14: м | E14: 5 | F14: 45 | G14: 225 | H14: ПР.М.125К.11 | I14: Mat
A15: 9 | B15: 1013038 | C15: PATG 2/15 Держатель маркировки проводника | D15: шт | E15: 6 | F15: 5 | G15: 30 | H15: ПР.М.125К.11 | I15: Phoenix
A16: 10 | B16: 0808260 | C16: PABL 15X4 Маркировочные полосы | D16: лист | E16: 0.1 | F16: 950 | G16: 95 | H16: ПР.М.125К.11 | I16: Phoenix
A17: 11 | B17: kn-t-16 | C17: Коннектор для гофрированной трубы (16мм.) (50шт.) Plast EKFPROxima | D17: шт | E17: 22 | F17: 22 | G17: 484 | H17: ПР.М.125К.11 | I17: Ekf
A18: 12 | B18: 43Б25У134Н | C18: Бирка У-134 квадратная | D18: шт | E18: 4 | F18: 2 | G18: 8 | H18: ПР.М.125К.11 | I18: Iek
A19: 13 | G19: 0
A20: 14 | G20: 0
A21: 15 | G21: 0
A22: 16 | G22: 0
A23: 17 | G23: 0
A24: 18 | G24: 0
A25: 19 | G25: 0
A26: 20 | G26: 0
A27: 21 | G27: 0
A28: 22 | G28: 0
A29: 23 | G29: 0
A30: 24 | G30: 0
A31: 25 | G31: 0
A32: 26 | G32: 0
A33: 27 | G33: 0
A34: 28 | G34: 0
A35: 29 | G35: 0
A36: 30 | G36: 0
A37: 31 | G37: 0
A38: 32 | G38: 0
A39: 33 | G39: 0
A40: 34 | G40: 0
A41: 35 | G41: 0
A42: 36 | G42: 0
A43: 37 | G43: 0
A44: 38 | G44: 0
A45: 39 | G45: 0
A46: 40 | G46: 0
A47: 41 | G47: 0
A48: 42 | G48: 0
A49: 43 | G49: 0
A50: 44 | G50: 0
A51: 45 | G51: 0
A52: 46 | G52: 0
A53: 47 | G53: 0
A54: 48 | G54: 0
A55: 49 | G55: 0
A56: 50 | G56: 0
A57: 51 | G57: 0
A58: 52 | G58: 0
A59: 53 | G59: 0
A60: 54 | G60: 0
A61: 55 | G61: 0
A62: 56 | G62: 0
A63: 57 | G63: 0
A64: 58 | G64: 0
A65: 59 | G65: 0
A66: 60 | G66: 0
A67: 61 | G67: 0
A68: 62 | G68: 0
A69: 63 | G69: 0
A70: 64 | G70: 0
A71: 65 | G71: 0
A72: 66 | G72: =E72*F72 -> 0
A73: 67 | G73: 0
A74: 68 | G74: 0
A75: 69 | G75: 0
A76: 70 | G76: 0
A77: 71 | G77: 0
A78: 72 | G78: 0
A79: 73 | G79: 0
A80: 74 | G80: 0
A81: 75 | G81: 0
A82: 76 | G82: 0
A83: 77 | G83: 0
A84: 78 | G84: 0
A85: 79 | G85: 0
A86: 80 | G86: 0
A87: 81 | G87: 0
A88: 82 | G88: 0
A89: 83 | G89: 0
A90: 84 | G90: 0
A91: 85 | G91: 0
A92: 86 | G92: 0
A93: 87 | G93: 0
A94: 88 | G94: 0
A95: 89 | G95: 0
A96: 90 | G96: 0
A97: 91 | G97: 0
A98: 92 | G98: 0
A99: 93 | G99: 0
A100: 94 | G100: =E100*F100 -> 0
A101: 95 | G101: 0
A102: 96 | G102: 0
A103: 97 | G103: 0
A104: 98 | G104: 0
A105: 99 | G105: 0
A106: 100 | G106: 0
A107: End | C107: ИТОГО | G107: =SUM(G7:G106) -> 1460

Sheet 8
E4: USD | F4: Курс USD ЦБ РФ | G4: =VLOOKUP(E4,RATE!B:E,4,FALSE) -> 75.5379
B5: Расчет | E5: EUR | F5: Курс EUR ЦБ РФ | G5: =VLOOKUP(E5,RATE!B:E,4,FALSE) -> 89.2254
A6: Start | B6: Артикул | C6: Наименование | D6: Ед. изм. | E6: Кол-во | F6: Цена вход, руб без НДС | G6: Сумма вход, руб без НДС | H6: Шифр / Примечание | I6: Произв / Пост
A7: 1 | B7: ВВГнг(А)-LS 3x1,5 | C7: Кабель силовой медный в ПВХ изоляции, LS-исполнения, нг-исполнения ВВГнг(А)-LS 3x1,5 | D7: м | E7: 6 | F7: 35 | G7: =E7*F7 -> 210 | H7: ПР.М.00000 | I7: Mat
A8: 2 | B8: tg-z-16 | C8: Труба гофр. ПВХ Plast с зондом d16мм (100м.) EKF PROxima | D8: м | E8: 6 | F8: 10 | G8: =E8*F8 -> 60 | H8: ПР.М.00000 | I8: Ekf
A9: 3 | B9: 51116 | C9: Держатель двухкомпонентный, д.16мм | D9: шт | E9: 34 | F9: 9 | G9: 306 | H9: ПР.М.00000 | I9: Dkc
A10: 4 | B10: plc-fl-ctsw-2.5x200 | C10: Хомут P6.6 стандартный (б), 2.5x200 (100шт) FlexLock PROxima | D10: уп | E10: 2 | F10: 77 | G10: 154 | H10: ПР.М.00000 | I10: Ekf
A11: 5 | B11: СЛБ-25 | C11: Саморез с прессшайбой 4,2х25 сверло | D11: шт | E11: 30 | F11: 2 | G11: 60 | H11: ПР.М.00000 | I11: Mat
A12: 6 | B12: plc-pg-25 | C12: Сальник PG25 IP54 (100 шт) d отв. 30 мм / d провод. 16-21 мм EKF PROxima | D12: шт | E12: 2 | F12: 45 | G12: 90 | H12: ПР.М.00000 | I12: Ekf
A13: 7 | B13: 47482 | C13: Нак-к кольцевой НКИ 6,0- 6 (КВТ) | D13: шт | E13: 4 | F13: 5 | G13: 20 | H13: ПР.М.00000 | I13: Mat
A14: 8 | B14: ПуГВ 1х6 жз (ПВ3 6 жз) | C14: ПуГВ 1x6 жз Провод гибкий многожильный с ПВХ изоляцией 6 мм2 желто-зеленый | D14: м | E14: 2 | F14: 45 | G14: 90 | H14: ПР.М.00000 | I14: Mat
A15: 9 | B15: 1013038 | C15: PATG 2/15 Держатель маркировки проводника | D15: шт | E15: 6 | F15: 5 | G15: 30 | H15: ПР.М.00000 | I15: Phoenix
A16: 10 | B16: 0808260 | C16: PABL 15X4 Маркировочные полосы | D16: лист | E16: 4 | F16: 950 | G16: 3800 | H16: ПР.М.00000 | I16: Phoenix
A17: 11 | B17: kn-t-16 | C17: Коннектор для гофрированной трубы (16мм.) (50шт.) Plast EKFPROxima | D17: шт | E17: 4 | F17: 22 | G17: 88 | H17: ПР.М.00000 | I17: Ekf
A18: 12 | B18: 43Б25У134Н | C18: Бирка У-134 квадратная | D18: шт | E18: 2 | F18: 2 | G18: 4 | H18: ПР.М.00000 | I18: Iek
A19: 13 | G19: 0
A20: 14 | G20: 0
A21: 15 | G21: 0
A22: 16 | G22: 0
A23: 17 | G23: 0
A24: 18 | G24: 0
A25: 19 | G25: 0
A26: 20 | G26: 0
A27: 21 | G27: 0
A28: 22 | G28: 0
A29: 23 | G29: 0
A30: 24 | G30: 0
A31: 25 | G31: 0
A32: 26 | G32: 0
A33: 27 | G33: 0
A34: 28 | G34: 0
A35: 29 | G35: 0
A36: 30 | G36: 0
A37: 31 | G37: 0
A38: 32 | G38: 0
A39: 33 | G39: 0
A40: 34 | G40: 0
A41: 35 | G41: 0
A42: 36 | G42: 0
A43: 37 | G43: 0
A44: 38 | G44: 0
A45: 39 | G45: 0
A46: 40 | G46: 0
A47: 41 | G47: 0
A48: 42 | G48: 0
A49: 43 | G49: 0
A50: 44 | G50: 0
A51: 45 | G51: 0
A52: 46 | G52: 0
A53: 47 | G53: 0
A54: 48 | G54: 0
A55: 49 | G55: 0
A56: 50 | G56: 0
A57: 51 | G57: 0
A58: 52 | G58: 0
A59: 53 | G59: 0
A60: 54 | G60: 0
A61: 55 | G61: 0
A62: 56 | G62: 0
A63: 57 | G63: 0
A64: 58 | G64: 0
A65: 59 | G65: 0
A66: 60 | G66: 0
A67: 61 | G67: 0
A68: 62 | G68: 0
A69: 63 | G69: 0
A70: 64 | G70: 0
A71: 65 | G71: 0
A72: 66 | G72: =E72*F72 -> 0
A73: 67 | G73: 0
A74: 68 | G74: 0
A75: 69 | G75: 0
A76: 70 | G76: 0
A77: 71 | G77: 0
A78: 72 | G78: 0
A79: 73 | G79: 0
A80: 74 | G80: 0
A81: 75 | G81: 0
A82: 76 | G82: 0
A83: 77 | G83: 0
A84: 78 | G84: 0
A85: 79 | G85: 0
A86: 80 | G86: 0
A87: 81 | G87: 0
A88: 82 | G88: 0
A89: 83 | G89: 0
A90: 84 | G90: 0
A91: 85 | G91: 0
A92: 86 | G92: 0
A93: 87 | G93: 0
A94: 88 | G94: 0
A95: 89 | G95: 0
A96: 90 | G96: 0
A97: 91 | G97: 0
A98: 92 | G98: 0
A99: 93 | G99: 0
A100: 94 | G100: =E100*F100 -> 0
A101: 95 | G101: 0
A102: 96 | G102: 0
A103: 97 | G103: 0
A104: 98 | G104: 0
A105: 99 | G105: 0
A106: 100 | G106: 0
A107: End | C107: ИТОГО | G107: =SUM(G7:G106) -> 4912

Sheet 9
E4: USD | F4: Курс USD ЦБ РФ | G4: =VLOOKUP(E4,RATE!B:E,4,FALSE) -> 75.5379
B5: Расчет | E5: EUR | F5: Курс EUR ЦБ РФ | G5: =VLOOKUP(E5,RATE!B:E,4,FALSE) -> 89.2254
A6: Start | B6: Артикул | C6: Наименование | D6: Ед. изм. | E6: Кол-во | F6: Цена вход, руб без НДС | G6: Сумма вход, руб без НДС | H6: Шифр / Примечание | I6: Произв / Пост
A7: 1 | B7: ВВГнг(А)-LS 3x1,5 | C7: Кабель силовой медный в ПВХ изоляции, LS-исполнения, нг-исполнения ВВГнг(А)-LS 3x1,5 | D7: м | E7: 8 | F7: 35 | G7: =E7*F7 -> 280 | H7: ПР.М.ОТ.ПР.2233 | I7: Mat
A8: 2 | B8: tg-z-16 | C8: Труба гофр. ПВХ Plast с зондом d16мм (100м.) EKF PROxima | D8: м | E8: 6 | F8: 10 | G8: =E8*F8 -> 60 | H8: ПР.М.ОТ.ПР.2233 | I8: Ekf
A9: 3 | B9: 51116 | C9: Держатель двухкомпонентный, д.16мм | D9: шт | E9: 10 | F9: 9 | G9: 90 | H9: ПР.М.ОТ.ПР.2233 | I9: Dkc
A10: 4 | B10: plc-fl-ctsw-2.5x200 | C10: Хомут P6.6 стандартный (б), 2.5x200 (100шт) FlexLock PROxima | D10: уп | E10: 8 | F10: 77 | G10: 616 | H10: ПР.М.ОТ.ПР.2233 | I10: Ekf
A11: 5 | B11: СЛБ-25 | C11: Саморез с прессшайбой 4,2х25 сверло | D11: шт | E11: 30 | F11: 2 | G11: 60 | H11: ПР.М.ОТ.ПР.2233 | I11: Mat
A12: 6 | B12: plc-pg-25 | C12: Сальник PG25 IP54 (100 шт) d отв. 30 мм / d провод. 16-21 мм EKF PROxima | D12: шт | E12: 4 | F12: 45 | G12: 180 | H12: ПР.М.ОТ.ПР.2233 | I12: Ekf
A13: 7 | B13: 47482 | C13: Нак-к кольцевой НКИ 6,0- 6 (КВТ) | D13: шт | E13: 4 | F13: 5 | G13: 20 | H13: ПР.М.ОТ.ПР.2233 | I13: Mat
A14: 8 | B14: ПуГВ 1х6 жз (ПВ3 6 жз) | C14: ПуГВ 1x6 жз Провод гибкий многожильный с ПВХ изоляцией 6 мм2 желто-зеленый | D14: м | E14: 6 | F14: 45 | G14: 270 | H14: ПР.М.ОТ.ПР.2233 | I14: Mat
A15: 9 | B15: 1013038 | C15: PATG 2/15 Держатель маркировки проводника | D15: шт | E15: 6 | F15: 5 | G15: 30 | H15: ПР.М.ОТ.ПР.2233 | I15: Phoenix
A16: 10 | B16: 0808260 | C16: PABL 15X4 Маркировочные полосы | D16: лист | E16: 3 | F16: 950 | G16: 2850 | H16: ПР.М.ОТ.ПР.2233 | I16: Phoenix
A17: 11 | B17: kn-t-16 | C17: Коннектор для гофрированной трубы (16мм.) (50шт.) Plast EKFPROxima | D17: шт | E17: 4 | F17: 22 | G17: 88 | H17: ПР.М.ОТ.ПР.2233 | I17: Ekf
A18: 12 | B18: 43Б25У134Н | C18: Бирка У-134 квадратная | D18: шт | E18: 5 | F18: 2 | G18: 10 | H18: ПР.М.ОТ.ПР.2233 | I18: Iek
A19: 13 | G19: 0
A20: 14 | G20: 0
A21: 15 | G21: 0
A22: 16 | G22: 0
A23: 17 | G23: 0
A24: 18 | G24: 0
A25: 19 | G25: 0
A26: 20 | G26: 0
A27: 21 | G27: 0
A28: 22 | G28: 0
A29: 23 | G29: 0
A30: 24 | G30: 0
A31: 25 | G31: 0
A32: 26 | G32: 0
A33: 27 | G33: 0
A34: 28 | G34: 0
A35: 29 | G35: 0
A36: 30 | G36: 0
A37: 31 | G37: 0
A38: 32 | G38: 0
A39: 33 | G39: 0
A40: 34 | G40: 0
A41: 35 | G41: 0
A42: 36 | G42: 0
A43: 37 | G43: 0
A44: 38 | G44: 0
A45: 39 | G45: 0
A46: 40 | G46: 0
A47: 41 | G47: 0
A48: 42 | G48: 0
A49: 43 | G49: 0
A50: 44 | G50: 0
A51: 45 | G51: 0
A52: 46 | G52: 0
A53: 47 | G53: 0
A54: 48 | G54: 0
A55: 49 | G55: 0
A56: 50 | G56: 0
A57: 51 | G57: 0
A58: 52 | G58: 0
A59: 53 | G59: 0
A60: 54 | G60: 0
A61: 55 | G61: 0
A62: 56 | G62: 0
A63: 57 | G63: 0
A64: 58 | G64: 0
A65: 59 | G65: 0
A66: 60 | G66: 0
A67: 61 | G67: 0
A68: 62 | G68: 0
A69: 63 | G69: 0
A70: 64 | G70: 0
A71: 65 | G71: 0
A72: 66 | G72: =E72*F72 -> 0
A73: 67 | G73: 0
A74: 68 | G74: 0
A75: 69 | G75: 0
A76: 70 | G76: 0
A77: 71 | G77: 0
A78: 72 | G78: 0
A79: 73 | G79: 0
A80: 74 | G80: 0
A81: 75 | G81: 0
A82: 76 | G82: 0
A83: 77 | G83: 0
A84: 78 | G84: 0
A85: 79 | G85: 0
A86: 80 | G86: 0
A87: 81 | G87: 0
A88: 82 | G88: 0
A89: 83 | G89: 0
A90: 84 | G90: 0
A91: 85 | G91: 0
A92: 86 | G92: 0
A93: 87 | G93: 0
A94: 88 | G94: 0
A95: 89 | G95: 0
A96: 90 | G96: 0
A97: 91 | G97: 0
A98: 92 | G98: 0
A99: 93 | G99: 0
A100: 94 | G100: =E100*F100 -> 0
A101: 95 | G101: 0
A102: 96 | G102: 0
A103: 97 | G103: 0
A104: 98 | G104: 0
A105: 99 | G105: 0
A106: 100 | G106: 0
A107: End | C107: ИТОГО | G107: =SUM(G7:G106) -> 4554

Sheet 10
E4: USD | F4: Курс USD ЦБ РФ | G4: =VLOOKUP(E4,RATE!B:E,4,FALSE) -> 75.5379
B5: Расчет | E5: EUR | F5: Курс EUR ЦБ РФ | G5: =VLOOKUP(E5,RATE!B:E,4,FALSE) -> 89.2254
A6: Start | B6: Артикул | C6: Наименование | D6: Ед. изм. | E6: Кол-во | F6: Цена вход, руб без НДС | G6: Сумма вход, руб без НДС | H6: Шифр / Примечание | I6: Произв / Пост
A7: 1 | B7: ВВГнг(А)-LS 3x1,5 | C7: Кабель силовой медный в ПВХ изоляции, LS-исполнения, нг-исполнения ВВГнг(А)-LS 3x1,5 | D7: м | E7: 9 | F7: 35 | G7: =E7*F7 -> 315 | H7: ПР.М.12МММ | I7: Mat
A8: 2 | B8: tg-z-16 | C8: Труба гофр. ПВХ Plast с зондом d16мм (100м.) EKF PROxima | D8: м | E8: 8 | F8: 10 | G8: =E8*F8 -> 80 | H8: ПР.М.12МММ | I8: Ekf
A9: 3 | B9: 51116 | C9: Держатель двухкомпонентный, д.16мм | D9: шт | E9: 14 | F9: 9 | G9: 126 | H9: ПР.М.12МММ | I9: Dkc
A10: 4 | B10: plc-fl-ctsw-2.5x200 | C10: Хомут P6.6 стандартный (б), 2.5x200 (100шт) FlexLock PROxima | D10: уп | E10: 3 | F10: 77 | G10: 231 | H10: ПР.М.12МММ | I10: Ekf
A11: 5 | B11: СЛБ-25 | C11: Саморез с прессшайбой 4,2х25 сверло | D11: шт | E11: 44 | F11: 2 | G11: 88 | H11: ПР.М.12МММ | I11: Mat
A12: 6 | B12: plc-pg-25 | C12: Сальник PG25 IP54 (100 шт) d отв. 30 мм / d провод. 16-21 мм EKF PROxima | D12: шт | E12: 5 | F12: 45 | G12: 225 | H12: ПР.М.122526 | I12: Ekf
A13: 7 | B13: 47482 | C13: Нак-к кольцевой НКИ 6,0- 6 (КВТ) | D13: шт | E13: 7 | F13: 5 | G13: 35 | H13: ПР.М.122526 | I13: Mat
A14: 8 | B14: ПуГВ 1х6 жз (ПВ3 6 жз) | C14: ПуГВ 1x6 жз Провод гибкий многожильный с ПВХ изоляцией 6 мм2 желто-зеленый | D14: м | E14: 5 | F14: 45 | G14: 225 | H14: ПР.М.122526 | I14: Mat
A15: 9 | B15: 1013038 | C15: PATG 2/15 Держатель маркировки проводника | D15: шт | E15: 8 | F15: 5 | G15: 40 | H15: ПР.М.122526 | I15: Phoenix
A16: 10 | B16: 0808260 | C16: PABL 15X4 Маркировочные полосы | D16: лист | E16: 3 | F16: 950 | G16: 2850 | H16: ПР.М.122526 | I16: Phoenix
A17: 11 | B17: kn-t-16 | C17: Коннектор для гофрированной трубы (16мм.) (50шт.) Plast EKFPROxima | D17: шт | E17: 8 | F17: 22 | G17: 176 | H17: ПР.М.122526 | I17: Ekf
A18: 12 | B18: 43Б25У134Н | C18: Бирка У-134 квадратная | D18: шт | E18: 3 | F18: 2 | G18: 6 | H18: ПР.М.122526 | I18: Iek
A19: 13 | G19: 0
A20: 14 | G20: 0
A21: 15 | G21: 0
A22: 16 | G22: 0
A23: 17 | G23: 0
A24: 18 | G24: 0
A25: 19 | G25: 0
A26: 20 | G26: 0
A27: 21 | G27: 0
A28: 22 | G28: 0
A29: 23 | G29: 0
A30: 24 | G30: 0
A31: 25 | G31: 0
A32: 26 | G32: 0
A33: 27 | G33: 0
A34: 28 | G34: 0
A35: 29 | G35: 0
A36: 30 | G36: 0
A37: 31 | G37: 0
A38: 32 | G38: 0
A39: 33 | G39: 0
A40: 34 | G40: 0
A41: 35 | G41: 0
A42: 36 | G42: 0
A43: 37 | G43: 0
A44: 38 | G44: 0
A45: 39 | G45: 0
A46: 40 | G46: 0
A47: 41 | G47: 0
A48: 42 | G48: 0
A49: 43 | G49: 0
A50: 44 | G50: 0
A51: 45 | G51: 0
A52: 46 | G52: 0
A53: 47 | G53: 0
A54: 48 | G54: 0
A55: 49 | G55: 0
A56: 50 | G56: 0
A57: 51 | G57: 0
A58: 52 | G58: 0
A59: 53 | G59: 0
A60: 54 | G60: 0
A61: 55 | G61: 0
A62: 56 | G62: 0
A63: 57 | G63: 0
A64: 58 | G64: 0
A65: 59 | G65: 0
A66: 60 | G66: 0
A67: 61 | G67: 0
A68: 62 | G68: 0
A69: 63 | G69: 0
A70: 64 | G70: 0
A71: 65 | G71: 0
A72: 66 | G72: =E72*F72 -> 0
A73: 67 | G73: 0
A74: 68 | G74: 0
A75: 69 | G75: 0
A76: 70 | G76: 0
A77: 71 | G77: 0
A78: 72 | G78: 0
A79: 73 | G79: 0
A80: 74 | G80: 0
A81: 75 | G81: 0
A82: 76 | G82: 0
A83: 77 | G83: 0
A84: 78 | G84: 0
A85: 79 | G85: 0
A86: 80 | G86: 0
A87: 81 | G87: 0
A88: 82 | G88: 0
A89: 83 | G89: 0
A90: 84 | G90: 0
A91: 85 | G91: 0
A92: 86 | G92: 0
A93: 87 | G93: 0
A94: 88 | G94: 0
A95: 89 | G95: 0
A96: 90 | G96: 0
A97: 91 | G97: 0
A98: 92 | G98: 0
A99: 93 | G99: 0
A100: 94 | G100: =E100*F100 -> 0
A101: 95 | G101: 0
A102: 96 | G102: 0
A103: 97 | G103: 0
A104: 98 | G104: 0
A105: 99 | G105: 0
A106: 100 | G106: 0
A107: End | C107: ИТОГО | G107: =SUM(G7:G106) -> 4397

Sheet end

Sheet RATE
A1: cbr
A3: ул. Неглинная, 12, Москва, 107016
A4: 8 800 300-30-00
A5: www.cbr.ru
A7: Поиск по сайту
A8: Интернет-приемная
A9: RU
A10: EN
A11: Поиск по сайту
A12: Интернет-приемная
A13: RU
A14: EN
A15: Что вы хотите найти?
A16: Искать
A17: Деятельность Документы и данные О Банке России Сервисы
A18: Коронавирус: поддержка экономики, бизнеса, граждан
A19: +
A20: 7 499 300-30-008 800 300-30-00300Бесплатно для звонков с мобильных телефонов
A21: Новости Решения Банка России Контактная информация Карта сайта О сайте
A22: Базы данных
A23: База данных по курсам валют
A25: Официальные курсы валют на заданную дату, устанавливаемые ежедневно
A27: 2020-08-27
A29: Центральный банк Российской Федерации установил с 27.08.2020 следующие курсы иностранных валют к рублю Российской Федерации без обязательств Банка России покупать или продавать указанные валюты по данному курсу
A31: Цифр. код | B31: Букв. код | C31: Единиц | D31: Валюта | E31: Курс
A32: 36 | B32: AUD | C32: 1 | D32: Австралийский доллар | E32: 54.3797
A33: 944 | B33: AZN | C33: 1 | D33: Азербайджанский манат | E33: 44.4602
A34: 51 | B34: AMD | C34: 100 | D34: Армянских драмов | E34: 15.5396
A35: 933 | B35: BYN | C35: 1 | D35: Белорусский рубль | E35: 28.5081
A36: 975 | B36: BGN | C36: 1 | D36: Болгарский лев | E36: 45.6312
A37: 986 | B37: BRL | C37: 1 | D37: Бразильский реал | E37: 13.7117
A38: 348 | B38: HUF | C38: 100 | D38: Венгерских форинтов | E38: 25.2492
A39: 410 | B39: KRW | C39: 1000 | D39: Вон Республики Корея | E39: 63.6634
A40: 344 | B40: HKD | C40: 10 | D40: Гонконгских долларов | E40: 97.4657
A41: 208 | B41: DKK | C41: 1 | D41: Датская крона | E41: 11.988
A42: 840 | B42: USD | C42: 1 | D42: Доллар США | E42: 75.5379
A43: 978 | B43: EUR | C43: 1 | D43: Евро | E43: 89.2254
A44: 356 | B44: INR | C44: 10 | D44: Индийских рупий | E44: 10.1666
A45: 398 | B45: KZT | C45: 100 | D45: Казахстанских тенге | E45: 17.9878
A46: 124 | B46: CAD | C46: 1 | D46: Канадский доллар | E46: 57.3169
A47: 417 | B47: KGS | C47: 100 | D47: Киргизских сомов | E47: 96.8739
A48: 156 | B48: CNY | C48: 1 | D48: Китайский юань | E48: 10.9601
A49: 498 | B49: MDL | C49: 10 | D49: Молдавских леев | E49: 45.3137
A50: 934 | B50: TMT | C50: 1 | D50: Новый туркменский манат | E50: 21.6131
A51: 578 | B51: NOK | C51: 10 | D51: Норвежских крон | E51: 84.3095
A52: 985 | B52: PLN | C52: 1 | D52: Польский злотый | E52: 20.2895
A53: 946 | B53: RON | C53: 1 | D53: Румынский лей | E53: 18.4405
A54: 960 | B54: XDR | C54: 1 | D54: СДР (специальные права заимствования) | E54: 106.6361
A55: 702 | B55: SGD | C55: 1 | D55: Сингапурский доллар | E55: 55.2097
A56: 972 | B56: TJS | C56: 10 | D56: Таджикских сомони | E56: 73.2311
A57: 949 | B57: TRY | C57: 1 | D57: Турецкая лира | E57: 10.269
A58: 860 | B58: UZS | C58: 10000 | D58: Узбекских сумов | E58: 73.6031
A59: 980 | B59: UAH | C59: 10 | D59: Украинских гривен | E59: 27.5761
A60: 826 | B60: GBP | C60: 1 | D60: Фунт стерлингов Соединенного королевства | E60: 99.3323
A61: 203 | B61: CZK | C61: 10 | D61: Чешских крон | E61: 34.046
A62: 752 | B62: SEK | C62: 10 | D62: Шведских крон | E62: 86.1823
A63: 756 | B63: CHF | C63: 1 | D63: Швейцарский франк | E63: 83.0087
A64: 710 | B64: ZAR | C64: 10 | D64: Южноафриканских рэндов | E64: 44.9221
A65: 392 | B65: JPY | C65: 100 | D65: Японских иен | E65: 71.1045
A66: Страница была полезной?
A67: Да Нет
A68: Последнее обновление страницы: 26.08.2020
A69: Наверх
A70: ул. Неглинная, 12, Москва, 107016
A71: 8 800 300-30-00(круглосуточно, бесплатно для звонков из регионов России)
A72: +7 499 300-30-00(круглосуточно, в соответствии с тарифами вашего оператора)
A73: 300(круглосуточно, бесплатно для звонков с мобильных телефонов)
A74: Личный кабинет участников рынка
A75: Отношения с инвесторами
A76: Перечень инсайдерской информации Банка России
A77: Официальное опубликование нормативных актов Банка России
A78: Проекты нормативных актов Банка России
A79: Перечень нерабочих праздничных дней и перенесенных выходных дней
A80: О сайте
A81: Контакты
A82: Противодействие коррупции
A83: Технические ресурсы
A84: Версия для слабовидящихОбычная версия
A85: © Банк России, 2000–2020.
A86: Дизайн сайта —
A87: На сайте Банка России используются файлы cookie
A88: Оставаясь на www.cbr.ru, вы принимаете пользовательское соглашение
A89: Подтвердить

Sheet SPEC
E4: USD | F4: Курс USD ЦБ РФ | G4: =VLOOKUP(E4,RATE!B:E,4,FALSE) -> 75.5379
B5: Расчет | E5: EUR | F5: Курс EUR ЦБ РФ | G5: =VLOOKUP(E5,RATE!B:E,4,FALSE) -> 89.2254
A6: № | B6: Артикул | C6: Наименование | D6: Ед. изм. | E6: Кол-во | F6: Цена вход, руб без НДС | G6: Сумма вход, руб без НДС | H6: Шифр / Примечание | I6: Произв / Пост
